[Event "Vetern-SM 50+ 2025"]
[Site "Uppsala, Sweden"]
[Date "2025.06.29"]
[Round "2.7"]
[White "Helin, Mikael"]
[Black "Lundberg, Daniel"]
[Result "1-0"]
[TimeControl "90 min for 40 move + 30 min with an increment of 30 sec starting move 1"]
[WhiteTitle "CM"]
[WhiteFideId "1703838"]
[BlackFideId "1759264"]
[WhiteElo "1929"]
[BlackElo "1838"]

1. e4 {[%emt 19:54:40]} c5 {[%emt 00:00:10]} 2. c4 {[%emt 00:00:06]} Nc6 {[%emt
00:01:00]} 3. Nc3 {[%emt 00:00:06]} g6 {[%emt 00:00:16]} 4. g3 {[%emt
00:00:09]} Bg7 {[%emt 00:00:21]} 5. Bg2 {[%emt 00:00:06]} d6 {[%emt 00:00:17]}
6. Nge2 {[%emt 00:00:19]} e6 {[%emt 00:00:29]} 7. O-O {[%emt 00:00:10]} Nge7
{[%emt 00:00:14]} 8. Rb1 {[%emt 00:00:15]} Qd7 {[%emt 00:06:10]} 9. a3 {[%emt
00:01:58]} O-O {[%emt 00:03:06]} 10. d3 {[%emt 00:00:16]} b6 {[%emt 00:00:50]}
11. b4 {[%emt 00:00:32]} Bb7 {[%emt 00:00:29]} 12. b5 {[%emt 00:01:11]} Nd4
{[%emt 00:01:44]} 13. Nxd4 {[%emt 00:00:17]} cxd4 {[%emt 00:09:26]} 14. Ne2
{[%emt 00:00:54]} d5 {[%emt 00:05:47]} 15. cxd5 {[%emt 00:05:50]} exd5 {[%emt
00:00:29]} 16. e5 {[%emt 00:00:14]} Bxe5 {[%emt 00:05:57]} 17. Bh6 {[%emt
00:24:30]} Rfe8 {[%emt 00:06:13]} 18. a4 {[%emt 00:06:33]} Qd6 {[%emt
00:13:25]} 19. Bd2 {[%emt 00:01:13]} Nf5 {[%emt 00:03:26]} 20. Nf4 {[%emt
00:03:54]} Bxf4 {[%emt 00:07:10]} 21. Bxf4 {[%emt 00:00:10]} Qa3 {[%emt
00:02:10]} 22. Bg5 {[%emt 00:02:12]} Rac8 {[%emt 00:01:56]} 23. Bh3 {[%emt
00:04:13]} Rc3 {[%emt 00:03:56]} 24. Bxf5 {[%emt 00:00:23]} gxf5 {[%emt
00:00:05]} 25. Qh5 {[%emt 00:00:32]} Qd6 {[%emt 00:00:16]} 26. Qh4 {[%emt
00:02:11]} Qg6 {[%emt 00:05:13]} 27. Qxd4 {[%emt 00:00:54]} Rec8 {[%emt
00:03:02]} 28. h4 {[%emt 00:03:06]} f4 {[%emt 00:00:42]} 29. Rbd1 {[%emt
00:02:41]} f3 {[%emt 00:02:06]} 30. Rfe1 {[%emt 00:01:51]} Rc2 {[%emt
00:03:00]} 31. Re7 {[%emt 00:02:22]} R2c7 {[%emt 00:02:35]} 32. Rde1 {[%emt
00:02:30]} Rxe7 {[%emt 00:00:16]} 33. Rxe7 {[%emt 00:00:03]} Ba8 {[%emt
00:01:15]} 34. Kh2 {[%emt 00:02:31]} h6 {[%emt 00:01:55]} 35. Be3 {[%emt
00:03:07]} 1-0

[Event "Vetern-SM 50+ 2025"]
[Site "Uppsala, Sweden"]
[Date "2025.06.29"]
[Round "2.8"]
[White "Uneson, Marcus"]
[Black "Ivarsson, Anders"]
[Result "1/2-1/2"]
[TimeControl "90 min for 40 move + 30 min with an increment of 30 sec starting move 1"]
[WhiteFideId "1730509"]
[BlackFideId "1768158"]
[WhiteElo "2118"]
[BlackElo "1987"]

1. e4 {[%emt 21:30:33]} c5 {[%emt 00:00:08]} 2. d4 {[%emt 00:00:20]} cxd4
{[%emt 00:00:06]} 3. c3 {[%emt 00:00:05]} Nf6 {[%emt 00:00:07]} 4. e5 {[%emt
00:01:24]} Nd5 {[%emt 00:00:09]} 5. cxd4 {[%emt 00:00:07]} d6 {[%emt 00:00:19]}
6. exd6 {[%emt 00:02:47]} e6 {[%emt 00:00:18]} 7. Nc3 {[%emt 00:00:15]} Bxd6
{[%emt 00:02:53]} 8. Nf3 {[%emt 00:01:22]} Nc6 {[%emt 00:00:53]} 9. Bc4 {[%emt
00:01:51]} Nb6 {[%emt 00:00:55]} 10. Bb3 {[%emt 00:00:23]} O-O {[%emt
00:00:29]} 11. O-O {[%emt 00:00:11]} h6 {[%emt 00:05:09]} 12. a3 {[%emt
00:04:26]} Ne7 {[%emt 00:05:15]} 13. Bc2 {[%emt 00:02:17]} f5 {[%emt 00:05:45]}
14. Re1 {[%emt 00:03:01]} Nbd5 {[%emt 00:08:17]} 15. Ne5 {[%emt 00:03:19]} Bxe5
{[%emt 00:04:32]} 16. Rxe5 {[%emt 00:00:59]} Nc6 {[%emt 00:02:36]} 17. Re1
{[%emt 00:01:11]} Kh8 {[%emt 00:07:07]} 18. Be3 {[%emt 00:07:29]} Nxe3 {[%emt
00:10:47]} 19. fxe3 {[%emt 00:00:17]} Qg5 {[%emt 00:05:37]} 20. Qf3 {[%emt
00:09:47]} Bd7 {[%emt 00:01:41]} 21. Rad1 {[%emt 00:04:29]} Rae8 {[%emt
00:01:01]} 22. e4 {[%emt 00:06:25]} e5 {[%emt 00:02:38]} 23. dxe5 {[%emt
00:02:25]} Nxe5 {[%emt 00:00:17]} 24. Qg3 {[%emt 00:00:50]} f4 {[%emt
00:04:11]} 25. Qxg5 {[%emt 00:00:23]} hxg5 {[%emt 00:00:01]} 26. Rf1 {[%emt
00:08:19]} Bg4 {[%emt 00:00:50]} 27. Rc1 {[%emt 00:01:05]} a6 {[%emt 00:07:52]}
28. h3 {[%emt 00:01:34]} Bh5 {[%emt 00:00:21]} 29. Bd1 {[%emt 00:01:28]} Bxd1
{[%emt 00:02:35]} 30. Rcxd1 {[%emt 00:01:50]} Nc4 {[%emt 00:00:41]} 31. Rd7
{[%emt 00:00:51]} b5 {[%emt 00:00:29]} 32. Ra7 {[%emt 00:02:58]} Re6 {[%emt
00:00:37]} 33. a4 {[%emt 00:01:47]} bxa4 {[%emt 00:06:20]} 34. Nxa4 {[%emt
00:01:29]} Rxe4 {[%emt 00:00:32]} 35. Rxa6 {[%emt 00:01:00]} Nd2 {[%emt
00:00:37]} 36. Nc3 {[%emt 00:02:25]} Rb4 {[%emt 00:01:35]} 37. Rf2 {[%emt
00:08:40]} Rxb2 {[%emt 00:00:31]} 38. Rd6 {[%emt 00:00:21]} Rc2 {[%emt
00:02:12]} 39. Rfxd2 {[%emt 00:00:54]} Rxc3 {[%emt 00:00:03]} 40. R6d5 {[%emt
00:04:14]} Rg3 {[%emt 00:04:27]} 41. Kf2 {[%emt 00:06:55]} Kh7 {[%emt
00:01:27]} 42. R2d3 {[%emt 00:04:35]} Rxd3 {[%emt 00:02:11]} 43. Rxd3 {[%emt
00:00:02]} Kg6 {[%emt 00:01:02]} 44. Kf3 {[%emt 00:00:34]} Kh5 {[%emt
00:08:48]} 45. Rd7 {[%emt 00:00:52]} Kh6 {[%emt 00:00:34]} 46. Kg4 {[%emt
00:01:57]} Re8 {[%emt 00:00:40]} 47. Rd6+ {[%emt 00:03:51]} g6 {[%emt
00:00:35]} 48. Rd3 {[%emt 00:02:00]} Re2 {[%emt 00:08:32]} 49. Kf3 {[%emt
00:00:39]} Ra2 {[%emt 00:00:25]} 50. Rb3 {[%emt 00:00:20]} Kh5 {[%emt
00:00:40]} 51. Rb8 {[%emt 00:00:29]} Ra3+ {[%emt 00:00:33]} 52. Kf2 {[%emt
00:00:47]} g4 {[%emt 00:00:46]} 53. Rh8+ {[%emt 00:00:59]} Kg5 {[%emt
00:00:10]} 54. h4+ {[%emt 00:00:10]} Kf5 {[%emt 00:01:00]} 55. Rf8+ {[%emt
00:00:08]} Ke5 {[%emt 00:06:14]} 56. Re8+ {[%emt 00:00:03]} Kd6 {[%emt
00:05:46]} 1/2-1/2

[Event "Vetern-SM 50+ 2025"]
[Site "Uppsala, Sweden"]
[Date "2025.06.30"]
[Round "3.1"]
[White "Eriksson, Kristian"]
[Black "Vernersson, Per"]
[Result "0-1"]
[TimeControl "90 min for 40 move + 30 min with an increment of 30 sec starting move 1"]
[WhiteFideId "1705172"]
[BlackFideId "1700863"]
[WhiteElo "1998"]
[BlackElo "2258"]

1. e4 {[%clk 01:30:54]} {[%emt 00:00:04]} c6 {[%clk 01:30:52]} {[%emt
00:00:08]} 2. d4 {[%clk 01:31:12]} {[%emt 00:00:13]} d5 {[%clk 01:31:16]}
{[%emt 00:00:06]} 3. Nc3 {[%clk 01:31:26]} {[%emt 00:00:16]} dxe4 {[%clk
01:31:26]} {[%emt 00:00:20]} 4. Nxe4 {[%clk 01:31:48]} {[%emt 00:00:08]} Nd7
{[%clk 01:31:47]} {[%emt 00:00:09]} 5. Qe2 {[%clk 01:31:41]} {[%emt 00:00:36]}
Ndf6 {[%clk 01:31:43]} {[%emt 00:00:35]} 6. Nf3 {[%clk 01:31:31]} {[%emt
00:00:39]} Nxe4 {[%clk 01:31:33]} {[%emt 00:00:41]} 7. Qxe4 {[%clk 01:31:54]}
{[%emt 00:00:07]} Nf6 {[%clk 01:31:59]} {[%emt 00:00:04]} 8. Qf4 {[%clk
01:31:34]} {[%emt 00:00:49]} g6 {[%clk 01:28:48]} {[%emt 00:03:42]} 9. Bc4
{[%clk 01:28:27]} {[%emt 00:03:35]} Bg7 {[%clk 01:28:08]} {[%emt 00:01:12]} 10.
O-O {[%clk 01:26:00]} {[%emt 00:02:57]} O-O {[%clk 01:27:56]} {[%emt 00:00:41]}
11. c3 {[%clk 01:25:12]} {[%emt 00:01:18]} Qd6 {[%clk 01:17:08]} {[%emt
00:11:18]} 12. Re1 {[%clk 01:20:57]} {[%emt 00:04:44]} Qxf4 {[%clk 01:12:07]}
{[%emt 00:05:33]} 13. Bxf4 {[%clk 01:21:00]} {[%emt 00:00:27]} e6 {[%clk
01:12:24]} {[%emt 00:00:13]} 14. a4 {[%clk 01:17:46]} {[%emt 00:03:44]} a5
{[%clk 01:12:18]} {[%emt 00:00:37]} 15. Ne5 {[%clk 01:12:58]} {[%emt 00:05:17]}
Rd8 {[%clk 01:06:22]} {[%emt 00:06:24]} 16. Rad1 {[%clk 01:05:15]} {[%emt
00:08:15]} Bd7 {[%clk 01:03:54]} {[%emt 00:02:57]} 17. Bb3 {[%clk 00:58:14]}
{[%emt 00:07:31]} Be8 {[%clk 01:00:21]} {[%emt 00:04:02]} 18. h3 {[%clk
00:51:18]} {[%emt 00:07:27]} Bf8 {[%clk 00:56:28]} {[%emt 00:04:23]} 19. Bg5
{[%clk 00:48:23]} {[%emt 00:03:23]} Be7 {[%clk 00:54:18]} {[%emt 00:02:42]} 20.
Ng4 {[%clk 00:45:10]} {[%emt 00:03:42]} Nd5 {[%clk 00:52:38]} {[%emt 00:02:11]}
21. Bxe7 {[%clk 00:41:59]} {[%emt 00:03:41]} Nxe7 {[%clk 00:52:52]} {[%emt
00:00:17]} 22. Ne5 {[%clk 00:39:49]} {[%emt 00:02:39]} b6 {[%clk 00:48:01]}
{[%emt 00:05:22]} 23. f3 {[%clk 00:36:30]} {[%emt 00:03:48]} Rac8 {[%clk
00:43:10]} {[%emt 00:05:21]} 24. Kf2 {[%clk 00:32:38]} {[%emt 00:04:21]} Kg7
{[%clk 00:39:48]} {[%emt 00:03:52]} 25. g4 {[%clk 00:30:20]} {[%emt 00:02:48]}
h6 {[%clk 00:37:43]} {[%emt 00:02:35]} 26. Kg3 {[%clk 00:25:26]} {[%emt
00:05:24]} Rb8 {[%clk 00:36:59]} {[%emt 00:01:15]} 27. Re2 {[%clk 00:20:50]}
{[%emt 00:05:06]} Nd5 {[%clk 00:30:09]} {[%emt 00:07:20]} 28. Nd3 {[%clk
00:18:49]} {[%emt 00:02:30]} Rdc8 {[%clk 00:29:24]} {[%emt 00:01:16]} 29. Kf2
{[%clk 00:14:21]} {[%emt 00:04:57]} Nf6 {[%clk 00:29:11]} {[%emt 00:00:44]} 30.
Red2 {[%clk 00:11:48]} {[%emt 00:03:04]} c5 {[%clk 00:28:42]} {[%emt 00:00:58]}
31. Ne5 {[%clk 00:11:34]} {[%emt 00:00:44]} cxd4 {[%clk 00:28:32]} {[%emt
00:00:41]} 32. Rxd4 {[%clk 00:11:23]} {[%emt 00:00:39]} b5 {[%clk 00:28:45]}
{[%emt 00:00:18]} 33. R1d2 {[%clk 00:10:23]} {[%emt 00:01:30]} g5 {[%clk
00:25:47]} {[%emt 00:03:28]} 34. Kg3 {[%clk 00:07:52]} {[%emt 00:03:01]} Rc7
{[%clk 00:23:16]} {[%emt 00:03:00]} 35. Bd1 {[%clk 00:06:17]} {[%emt 00:02:05]}
Rc5 {[%clk 00:18:04]} {[%emt 00:05:43]} 36. Nd3 {[%clk 00:05:32]} {[%emt
00:01:16]} Rc7 {[%clk 00:17:47]} {[%emt 00:00:47]} 37. Ne5 {[%clk 00:04:59]}
{[%emt 00:01:02]} Nd5 {[%clk 00:16:29]} {[%emt 00:01:47]} 38. axb5 {[%clk
00:03:56]} {[%emt 00:01:34]} Ne3 {[%clk 00:14:03]} {[%emt 00:02:56]} 39. Be2
{[%clk 00:02:12]} {[%emt 00:02:14]} Bxb5 {[%clk 00:12:50]} {[%emt 00:01:44]} 40.
c4 {[%clk 00:01:58]} {[%emt 00:00:43]} Ba4 {[%clk 00:06:43]} {[%emt 00:06:37]}
41. c5 {[%clk 00:16:25]} {[%emt 00:16:03]} Bb5 {[%clk 00:32:41]} {[%emt
00:04:32]} 42. Kf2 {[%clk 00:14:28]} {[%emt 00:02:27]} Nd5 {[%clk 00:31:57]}
{[%emt 00:01:14]} 43. Bxb5 {[%emt 00:01:04]} Rxb5 {[%clk 00:32:19]} {[%emt
00:00:07]} 44. Nd3 {[%clk 00:13:23]} {[%emt 00:01:00]} Nb4 {[%clk 00:30:12]}
{[%emt 00:02:39]} 45. Nxb4 {[%clk 00:10:08]} {[%emt 00:03:46]} axb4 {[%clk
00:30:29]} {[%emt 00:00:12]} 46. Rc2 {[%clk 00:09:44]} {[%emt 00:00:54]} b3
{[%clk 00:30:24]} {[%emt 00:00:35]} 47. Rcd2 {[%clk 00:08:21]} {[%emt
00:01:53]} Rcxc5 {[%clk 00:30:05]} {[%emt 00:00:49]} 48. Ke3 {[%clk 00:07:15]}
{[%emt 00:01:35]} Rc2 {[%clk 00:29:09]} {[%emt 00:01:27]} 49. R4d3 {[%clk
00:05:39]} {[%emt 00:02:06]} Kf6 {[%clk 00:29:07]} {[%emt 00:00:31]} 50. Rd7
{[%clk 00:04:11]} {[%emt 00:01:58]} Re5+ {[%clk 00:26:08]} {[%emt 00:03:29]} 51.
Kd3 {[%clk 00:03:01]} {[%emt 00:01:40]} Rc1 {[%clk 00:24:30]} {[%emt 00:02:09]}
52. Kd4 {[%clk 00:02:27]} {[%emt 00:01:04]} Rc2 {[%clk 00:22:02]} {[%emt
00:02:58]} 53. Rxc2 {[%clk 00:01:47]} {[%emt 00:01:10]} bxc2 {[%clk 00:22:10]}
{[%emt 00:00:23]} 54. Rc7 {[%clk 00:02:09]} {[%emt 00:00:07]} Re2 {[%clk
00:21:40]} {[%emt 00:01:02]} 55. b4 {[%clk 00:01:28]} {[%emt 00:01:09]} Rf2
{[%clk 00:16:53]} {[%emt 00:05:16]} 56. Ke3 {[%clk 00:01:22]} {[%emt 00:00:37]}
Rh2 {[%clk 00:16:36]} {[%emt 00:00:47]} 57. b5 {[%clk 00:01:36]} {[%emt
00:00:16]} Ke5 {[%clk 00:16:49]} {[%emt 00:00:17]} 58. b6 {[%clk 00:01:26]}
{[%emt 00:00:41]} Rh1 {[%clk 00:16:43]} {[%emt 00:00:35]} 59. Rxc2 {[%clk
00:01:25]} {[%emt 00:00:31]} Rb1 {[%clk 00:16:51]} {[%emt 00:00:20]} 60. Rc7
{[%clk 00:01:26]} {[%emt 00:00:30]} Rb3+ {[%clk 00:16:31]} {[%emt 00:00:51]} 61.
Ke2 {[%clk 00:01:16]} {[%emt 00:00:40]} f5 {[%clk 00:16:21]} {[%emt 00:00:39]}
62. b7 {[%clk 00:01:01]} {[%emt 00:00:46]} Kf4 {[%clk 00:16:26]} {[%emt
00:00:24]} 63. gxf5 {[%clk 00:00:45]} {[%emt 00:00:48]} exf5 {[%clk 00:16:25]}
{[%emt 00:00:31]} 64. Rh7 {[%emt 00:00:43]} Rb2+ {[%clk 00:16:38]} {[%emt
00:00:14]} 65. Kd3 {[%clk 00:00:52]} {[%emt 00:00:11]} h5 {[%clk 00:15:47]}
{[%emt 00:01:21]} 66. Rxh5 {[%clk 00:00:44]} {[%emt 00:00:38]} Rxb7 {[%clk
00:16:11]} {[%emt 00:00:07]} 67. h4 {[%clk 00:00:52]} {[%emt 00:00:22]} gxh4
{[%clk 00:16:13]} {[%emt 00:00:28]} 68. Rxh4+ {[%clk 00:01:09]} {[%emt
00:00:14]} Kxf3 {[%clk 00:16:29]} {[%emt 00:00:13]} 69. Rh3 {[%clk 00:01:06]}
{[%emt 00:00:32]} Kg4 {[%clk 00:16:37]} {[%emt 00:00:23]} 70. Rh8 {[%clk
00:01:26]} {[%emt 00:00:10]} Re7 {[%clk 00:16:55]} {[%emt 00:00:13]} 71. Rg8+
{[%clk 00:00:42]} {[%emt 00:01:14]} Kf3 {[%clk 00:17:18]} {[%emt 00:00:06]} 72.
Rg6 {[%clk 00:00:44]} {[%emt 00:00:28]} Rd7+ {[%clk 00:17:42]} {[%emt
00:00:06]} 0-1

[Event "Vetern-SM 50+ 2025"]
[Site "Uppsala, Sweden"]
[Date "2025.06.30"]
[Round "3.2"]
[White "Olsson, Pether"]
[Black "Svensson, Hakan"]
[Result "1-0"]
[TimeControl "90 min for 40 move + 30 min with an increment of 30 sec starting move 1"]
[WhiteFideId "1726820"]
[BlackFideId "1714201"]
[WhiteElo "2160"]
[BlackElo "2004"]

1. d4 {[%clk 01:30:55]} {[%emt 00:00:04]} d5 {[%clk 01:30:53]} {[%emt
00:00:07]} 2. Bf4 {[%clk 01:31:20]} {[%emt 00:00:05]} c5 {[%clk 01:31:14]}
{[%emt 00:00:09]} 3. e3 {[%clk 01:31:45]} {[%emt 00:00:06]} cxd4 {[%clk
01:31:38]} {[%emt 00:00:07]} 4. exd4 {[%clk 01:31:56]} {[%emt 00:00:18]} Nc6
{[%clk 01:32:02]} {[%emt 00:00:05]} 5. c3 {[%clk 01:31:56]} {[%emt 00:00:30]}
Bf5 {[%clk 01:32:23]} {[%emt 00:00:09]} 6. Nd2 {[%clk 01:30:35]} {[%emt
00:01:51]} e6 {[%clk 01:32:45]} {[%emt 00:00:08]} 7. Qb3 {[%clk 01:29:35]}
{[%emt 00:01:30]} Qd7 {[%clk 01:32:37]} {[%emt 00:00:38]} 8. Ngf3 {[%clk
01:28:16]} {[%emt 00:01:48]} f6 {[%clk 01:32:47]} {[%emt 00:00:22]} 9. h4
{[%clk 01:26:22]} {[%emt 00:02:23]} Nh6 {[%clk 01:32:29]} {[%emt 00:00:48]} 10.
h5 {[%clk 01:24:06]} {[%emt 00:02:47]} Nf7 {[%clk 01:28:51]} {[%emt 00:04:07]}
11. Be2 {[%clk 01:18:08]} {[%emt 00:06:26]} e5 {[%clk 01:26:54]} {[%emt
00:02:30]} 12. Be3 {[%clk 01:11:42]} {[%emt 00:06:55]} Be6 {[%clk 01:16:31]}
{[%emt 00:10:53]} 13. Qa4 {[%clk 01:06:07]} {[%emt 00:06:05]} e4 {[%clk
01:09:07]} {[%emt 00:07:54]} 14. Nh4 {[%clk 00:58:02]} {[%emt 00:08:36]} Bg4
{[%clk 01:05:06]} {[%emt 00:04:29]} 15. Qd1 {[%clk 00:57:58]} {[%emt 00:00:33]}
f5 {[%clk 01:00:19]} {[%emt 00:05:17]} 16. Bxg4 {[%clk 00:52:19]} {[%emt
00:06:10]} fxg4 {[%clk 01:00:35]} {[%emt 00:00:14]} 17. Qe2 {[%clk 00:51:59]}
{[%emt 00:00:49]} Be7 {[%clk 00:48:47]} {[%emt 00:12:17]} 18. O-O-O {[%clk
00:51:03]} {[%emt 00:01:27]} O-O-O {[%clk 00:49:05]} {[%emt 00:00:13]} 19. Kb1
{[%clk 00:41:21]} {[%emt 00:10:13]} Kb8 {[%clk 00:49:01]} {[%emt 00:00:34]} 20.
g3 {[%emt 00:02:43]} Ng5 {[%clk 00:47:55]} 21. Bxg5 {[%clk 00:39:28]} {[%emt
00:01:45]} Bxg5 {[%clk 00:48:19]} {[%emt 00:00:06]} 22. Ng2 {[%clk 00:39:31]}
{[%emt 00:00:27]} Qf5 {[%clk 00:33:16]} {[%emt 00:15:33]} 23. Ne3 {[%clk
00:36:52]} {[%emt 00:03:09]} Bxe3 {[%clk 00:30:59]} {[%emt 00:02:47]} 24. fxe3
{[%clk 00:37:03]} {[%emt 00:00:20]} Rdf8 {[%clk 00:27:44]} {[%emt 00:03:45]} 25.
Rdf1 {[%clk 00:32:32]} {[%emt 00:05:01]} Qe6 {[%clk 00:27:56]} {[%emt
00:00:17]} 26. Rf4 {[%clk 00:31:24]} {[%emt 00:01:38]} Rxf4 {[%clk 00:27:40]}
{[%emt 00:00:46]} 27. gxf4 {[%clk 00:31:40]} {[%emt 00:00:15]} g6 {[%clk
00:27:35]} {[%emt 00:00:34]} 28. Qh2 {[%clk 00:31:28]} {[%emt 00:00:41]} Ka8
{[%clk 00:24:51]} {[%emt 00:03:15]} 29. Nf1 {[%clk 00:23:08]} {[%emt 00:08:50]}
Ne7 {[%clk 00:24:08]} {[%emt 00:01:13]} 30. Qh4 {[%clk 00:22:25]} {[%emt
00:01:13]} gxh5 {[%clk 00:18:52]} {[%emt 00:05:47]} 31. Qxh5 {[%clk 00:21:27]}
{[%emt 00:01:27]} Qa6 {[%clk 00:10:49]} {[%emt 00:08:33]} 32. Qxg4 {[%clk
00:18:09]} {[%emt 00:03:49]} Qd3+ {[%clk 00:10:33]} {[%emt 00:00:46]} 33. Kc1
{[%clk 00:17:41]} {[%emt 00:00:57]} Nc6 {[%clk 00:10:45]} {[%emt 00:00:17]} 34.
Qd1 {[%clk 00:17:16]} {[%emt 00:00:56]} Qc4 {[%clk 00:11:02]} {[%emt 00:00:13]}
35. Kb1 {[%clk 00:15:43]} {[%emt 00:02:04]} h5 {[%clk 00:10:19]} {[%emt
00:01:12]} 36. Ng3 {[%clk 00:14:49]} {[%emt 00:01:24]} h4 {[%clk 00:10:28]}
{[%emt 00:00:20]} 37. Qf1 {[%clk 00:11:33]} {[%emt 00:03:47]} Qa4 {[%clk
00:07:30]} {[%emt 00:03:29]} 38. Nf5 {[%clk 00:10:30]} {[%emt 00:01:32]} h3
{[%clk 00:05:48]} {[%emt 00:02:12]} 39. b3 {[%clk 00:06:28]} {[%emt 00:04:32]}
Qa5 {[%clk 00:05:53]} {[%emt 00:00:25]} 40. Kb2 {[%clk 00:06:31]} {[%emt
00:00:26]} Rc8 {[%clk 00:01:19]} {[%emt 00:05:04]} 41. Qxh3 {[%clk 00:24:02]}
{[%emt 00:12:59]} Nb4 {[%clk 00:22:25]} {[%emt 00:09:24]} 42. cxb4 {[%clk
00:21:45]} {[%emt 00:02:48]} Qxb4 {[%clk 00:22:51]} {[%emt 00:00:04]} 43. Qg2
{[%clk 00:11:58]} {[%emt 00:10:17]} Qc3+ {[%clk 00:23:13]} {[%emt 00:00:08]} 44.
Kb1 {[%clk 00:04:48]} {[%emt 00:07:41]} Qd3+ {[%clk 00:22:07]} {[%emt
00:01:35]} 45. Ka1 {[%clk 00:05:15]} {[%emt 00:00:03]} a5 {[%clk 00:21:00]}
{[%emt 00:01:37]} 46. Qb2 {[%clk 00:04:53]} {[%emt 00:00:52]} Rc2 {[%clk
00:20:46]} {[%emt 00:00:44]} 47. Qa3 {[%clk 00:04:59]} {[%emt 00:00:23]} Qc3+
{[%clk 00:14:45]} {[%emt 00:06:32]} 48. Kb1 {[%clk 00:05:25]} {[%emt 00:00:03]}
Qd3 {[%clk 00:10:44]} {[%emt 00:04:32]} 49. Qxa5+ {[%clk 00:05:41]} {[%emt
00:00:15]} Kb8 {[%clk 00:11:13]} 50. Ka1 {[%clk 00:05:37]} {[%emt 00:00:32]}
Rc8 {[%clk 00:11:06]} {[%emt 00:00:38]} 51. Nd6 {[%clk 00:05:12]} {[%emt
00:00:54]} Rg8 {[%clk 00:07:47]} {[%emt 00:03:49]} 52. Nb5 {[%clk 00:05:04]}
{[%emt 00:00:38]} Qxe3 {[%clk 00:06:44]} {[%emt 00:01:33]} 53. Qa7+ {[%clk
00:05:04]} {[%emt 00:00:30]} Kc8 {[%clk 00:07:11]} {[%emt 00:00:05]} 54. Qa8+
{[%clk 00:05:01]} {[%emt 00:00:32]} 1-0